[Event "*** Titled Tuesday Blitz"]
[Site "Chess.com"]
[Date "2018.06.05"]
[Round "10"]
[White "Kimster98"]
[Black "cukus"]
[Result "0-1"]
[WhiteElo "2532"]
[BlackElo "2436"]
[TimeControl "180+2"]
[EndTime "15:26:53 PDT"]
[Termination "cukus won by resignation"]

1. d4 {[%clk 0:02:59.6]} 1... Nf6 {[%clk 0:03:00.8]} 2. Bg5 {[%clk 0:03:00.4]}
2... Ne4 {[%clk 0:02:52.7]} 3. Bf4 {[%clk 0:03:01.2]} 3... c5 {[%clk 0:02:50.1]}
4. f3 {[%clk 0:03:01.2]} 4... Qa5+ {[%clk 0:02:48.9]} 5. c3 {[%clk 0:03:02.5]}
5... Nf6 {[%clk 0:02:47.5]} 6. d5 {[%clk 0:03:02.9]} 6... d6 {[%clk 0:02:44.6]}
7. e4 {[%clk 0:03:02.7]} 7... g6 {[%clk 0:02:43.8]} 8. Na3 {[%clk 0:03:02.8]}
8... Bg7 {[%clk 0:02:42.7]} 9. Nc4 {[%clk 0:03:03.4]} 9... Qc7 {[%clk
0:02:39.3]} 10. a4 {[%clk 0:03:04.1]} 10... Nbd7 {[%clk 0:02:36.6]} 11. Bd3
{[%clk 0:03:01.6]} 11... O-O {[%clk 0:02:32.6]} 12. Nh3 {[%clk 0:02:37.7]} 12...
Ne5 {[%clk 0:02:16.3]} 13. Nf2 {[%clk 0:02:14.6]} 13... Nfd7 {[%clk 0:02:11.2]}
14. Be2 {[%clk 0:02:06.4]} 14... f5 {[%clk 0:02:05.5]} 15. exf5 {[%clk
0:02:05.7]} 15... Nxc4 {[%clk 0:02:04.5]} 16. Bxc4 {[%clk 0:02:05.5]} 16... Rxf5
{[%clk 0:01:58.6]} 17. Bg3 {[%clk 0:02:02.7]} 17... Ne5 {[%clk 0:01:56.8]} 18.
Be2 {[%clk 0:02:03.2]} 18... c4 {[%clk 0:01:50.7]} 19. f4 {[%clk 0:01:55.1]}
19... Nd3+ {[%clk 0:01:40.1]} 20. Bxd3 {[%clk 0:01:54.9]} 20... cxd3 {[%clk
0:01:36.5]} 21. Qxd3 {[%clk 0:01:55.6]} 21... Qa5 {[%clk 0:01:29.2]} 22. Rd1
{[%clk 0:01:50.3]} 22... Qxa4 {[%clk 0:01:22.6]} 23. O-O {[%clk 0:01:49.9]}
23... Bd7 {[%clk 0:01:20]} 24. Rfe1 {[%clk 0:01:46.8]} 24... Re8 {[%clk
0:01:14.2]} 25. Ne4 {[%clk 0:01:36.9]} 25... Bb5 {[%clk 0:01:03.7]} 26. Qd2
{[%clk 0:01:36.1]} 26... Qb3 {[%clk 0:01:00.5]} 27. Bh4 {[%clk 0:00:50.6]} 27...
Bc4 {[%clk 0:00:53.6]} 28. Nxd6 {[%clk 0:00:44.1]} 28... Qb6+ {[%clk 0:00:50]}
29. Bf2 {[%clk 0:00:40.1]} 29... Qxd6 {[%clk 0:00:49.9]} 30. Bxa7 {[%clk
0:00:41.7]} 30... Rxd5 {[%clk 0:00:47.3]} 31. Qc1 {[%clk 0:00:39.9]} 31... e6
{[%clk 0:00:44.5]} 32. Rxd5 {[%clk 0:00:36.5]} 32... Bxd5 {[%clk 0:00:43.2]} 33.
Qe3 {[%clk 0:00:34]} 33... Bc6 {[%clk 0:00:38]} 34. Qf2 {[%clk 0:00:22.8]} 34...
Qd5 {[%clk 0:00:35.6]} 35. Be3 {[%clk 0:00:21.1]} 35... e5 {[%clk 0:00:33.6]}
36. Rf1 {[%clk 0:00:20.4]} 36... exf4 {[%clk 0:00:30.5]} 37. Bxf4 {[%clk
0:00:22.3]} 37... Bb5 {[%clk 0:00:27.6]} 38. Re1 {[%clk 0:00:21.5]} 38... Rxe1+
{[%clk 0:00:24.6]} 39. Qxe1 {[%clk 0:00:23.4]} 39... Qc5+ {[%clk 0:00:21.9]} 40.
Be3 {[%clk 0:00:24]} 40... Qe7 {[%clk 0:00:17.1]} 41. Qd2 {[%clk 0:00:24.8]}
41... Bc6 {[%clk 0:00:10.9]} 42. Qd3 {[%clk 0:00:21.3]} 42... Qd7 {[%clk
0:00:11.2]} 43. Qxd7 {[%clk 0:00:18.1]} 43... Bxd7 {[%clk 0:00:12.1]} 44. Kf2
{[%clk 0:00:20]} 44... Kf7 {[%clk 0:00:13.2]} 45. Bd2 {[%clk 0:00:20.9]} 45...
Be6 {[%clk 0:00:13.3]} 46. Ke3 {[%clk 0:00:21.3]} 46... Bh6+ {[%clk 0:00:13.8]}
47. Kd3 {[%clk 0:00:22.8]} 47... Bf5+ {[%clk 0:00:14.3]} 48. Ke2 {[%clk
0:00:24]} 48... Bxd2 {[%clk 0:00:15.2]} 49. Kxd2 {[%clk 0:00:25.9]} 49... Ke6
{[%clk 0:00:16.7]} 50. b3 {[%clk 0:00:26.2]} 50... Kd5 {[%clk 0:00:17.8]} 51.
Ke3 {[%clk 0:00:27.6]} 51... b5 {[%clk 0:00:17.3]} 52. Kd2 {[%clk 0:00:28.5]}
52... Ke4 {[%clk 0:00:18]} 53. Ke2 {[%clk 0:00:29.7]} 53... Be6 {[%clk
0:00:18.7]} 54. c4 {[%clk 0:00:30.3]} 54... bxc4 {[%clk 0:00:17]} 55. bxc4
{[%clk 0:00:32.2]} 55... Bxc4+ {[%clk 0:00:18.6]} 56. Kf2 {[%clk 0:00:33.8]}
56... Kf4 {[%clk 0:00:18.9]} 57. h3 {[%clk 0:00:35.3]} 57... Bd5 {[%clk
0:00:19.3]} 58. g3+ {[%clk 0:00:36.7]} 58... Ke4 {[%clk 0:00:20.6]} 59. Ke2
{[%clk 0:00:38.2]} 59... g5 {[%clk 0:00:20.5]} 60. Kf2 {[%clk 0:00:39.6]} 60...
h6 {[%clk 0:00:20.8]} 61. Ke2 {[%clk 0:00:40.8]} 61... Bc4+ {[%clk 0:00:22.3]}
62. Kf2 {[%clk 0:00:42.3]} 62... Bd3 {[%clk 0:00:23.2]} 63. g4 {[%clk
0:00:39.4]} 63... Kf4 {[%clk 0:00:21.3]} 64. Kg2 {[%clk 0:00:40.9]} 64... Be4+
{[%clk 0:00:19.4]} 65. Kf2 {[%clk 0:00:41.7]} 65... Bf3 {[%clk 0:00:20.7]} 66.
h4 {[%clk 0:00:43.2]} 66... Bxg4 {[%clk 0:00:20.6]} 67. hxg5 {[%clk 0:00:44]}
67... hxg5 {[%clk 0:00:22]} 68. Kg2 {[%clk 0:00:44.7]} 68... Bf5 {[%clk
0:00:23.2]} 69. Kg1 {[%clk 0:00:46.6]} 69... Kg3 {[%clk 0:00:23.9]} 70. Kf1
{[%clk 0:00:47.9]} 70... g4 {[%clk 0:00:24.8]} 71. Kg1 {[%clk 0:00:49.8]} 71...
Kf3 {[%clk 0:00:24.4]} 72. Kf1 {[%clk 0:00:51.1]} 72... g3 {[%clk 0:00:25.6]}
73. Kg1 {[%clk 0:00:53]} 73... Be4 {[%clk 0:00:21]} 74. Kf1 {[%clk 0:00:54]}
74... g2+ {[%clk 0:00:20.3]} 75. Kg1 {[%clk 0:00:55.4]} 75... Bd5 {[%clk
0:00:21.5]} 76. Kh2 {[%clk 0:00:56.2]} 76... Kf2 {[%clk 0:00:22]} 77. Kh3 {[%clk
0:00:58.1]} 77... g1=Q {[%clk 0:00:21.9]} 78. Kh4 {[%clk 0:01:00]} 78... Bf7
{[%clk 0:00:21.8]} 0-1

[Event "*** Titled Tuesday Blitz"]
[Site "Chess.com"]
[Date "2018.06.05"]
[Round "10"]
[White "Infernal_XaM"]
[Black "hansen"]
[Result "1-0"]
[WhiteElo "2767"]
[BlackElo "2779"]
[TimeControl "180+2"]
[EndTime "15:27:25 PDT"]
[Termination "Infernal_XaM won by resignation"]

1. d4 {[%clk 0:03:01.9]} 1... Nf6 {[%clk 0:02:58.4]} 2. Nf3 {[%clk 0:03:02.3]}
2... g6 {[%clk 0:02:59.3]} 3. b4 {[%clk 0:03:01.8]} 3... Bg7 {[%clk 0:02:58.5]}
4. Nbd2 {[%clk 0:03:02.9]} 4... Nd5 {[%clk 0:02:16.8]} 5. Ba3 {[%clk 0:02:57]}
5... Nc3 {[%clk 0:01:57.1]} 6. Qc1 {[%clk 0:02:57.6]} 6... d5 {[%clk 0:01:52.6]}
7. e3 {[%clk 0:02:58]} 7... O-O {[%clk 0:01:46.7]} 8. Qb2 {[%clk 0:02:57.5]}
8... Na4 {[%clk 0:01:37.2]} 9. Qb3 {[%clk 0:02:58.1]} 9... Nb6 {[%clk
0:01:38.4]} 10. Be2 {[%clk 0:02:53.5]} 10... Re8 {[%clk 0:01:35.1]} 11. O-O
{[%clk 0:02:53.6]} 11... N8d7 {[%clk 0:01:32.7]} 12. c4 {[%clk 0:02:54.3]} 12...
dxc4 {[%clk 0:01:28.5]} 13. Nxc4 {[%clk 0:02:55.4]} 13... Nxc4 {[%clk
0:01:30.1]} 14. Bxc4 {[%clk 0:02:55.8]} 14... e6 {[%clk 0:01:31.7]} 15. b5
{[%clk 0:02:56.3]} 15... b6 {[%clk 0:01:23]} 16. Rfc1 {[%clk 0:02:54.2]} 16...
Bb7 {[%clk 0:01:22.6]} 17. Be2 {[%clk 0:02:55.2]} 17... a6 {[%clk 0:01:20.9]}
18. Bb2 {[%clk 0:02:50]} 18... axb5 {[%clk 0:01:14.6]} 19. Bxb5 {[%clk
0:02:50.6]} 19... Bxf3 {[%clk 0:01:10.3]} 20. gxf3 {[%clk 0:02:51.5]} 20... c5
{[%clk 0:01:11.9]} 21. d5 {[%clk 0:02:25.1]} 21... Bxb2 {[%clk 0:01:06.5]} 22.
dxe6 {[%clk 0:02:12.7]} 22... Rxe6 {[%clk 0:00:58.3]} 23. Qxb2 {[%clk
0:02:13.3]} 23... Ne5 {[%clk 0:00:56.7]} 24. Qe2 {[%clk 0:02:07.8]} 24... Qg5+
{[%clk 0:00:51.7]} 25. Kh1 {[%clk 0:02:06.6]} 25... Qh5 {[%clk 0:00:52.7]} 26.
Kg2 {[%clk 0:02:03.5]} 26... Qg5+ {[%clk 0:00:53.7]} 27. Kh1 {[%clk 0:02:04.7]}
27... Qh5 {[%clk 0:00:55.1]} 28. Kg2 {[%clk 0:01:55.9]} 28... Qg5+ {[%clk
0:00:32.6]} 29. Kh1 {[%clk 0:01:56.5]} 29... Qh4 {[%clk 0:00:32.3]} 30. Rg1
{[%clk 0:01:50.7]} 30... Rd8 {[%clk 0:00:30]} 31. f4 {[%clk 0:01:50.2]} 31...
Nc6 {[%clk 0:00:28.4]} 32. Bc4 {[%clk 0:01:47.3]} 32... Red6 {[%clk 0:00:24.4]}
33. Rad1 {[%clk 0:01:45]} 33... Qf6 {[%clk 0:00:11.6]} 34. Rxd6 {[%clk
0:01:42.4]} 34... Rxd6 {[%clk 0:00:13.5]} 35. Rd1 {[%clk 0:01:39.3]} 35... Ne7
{[%clk 0:00:10.4]} 36. Bb3 {[%clk 0:01:33.1]} 36... Nf5 {[%clk 0:00:10.5]} 37.
Rxd6 {[%clk 0:01:28.2]} 37... Qxd6 {[%clk 0:00:11.3]} 38. Qb5 {[%clk 0:01:29.4]}
38... Kg7 {[%clk 0:00:09.4]} 39. Qc4 {[%clk 0:01:26.4]} 39... Qc6+ {[%clk
0:00:09.1]} 40. Kg1 {[%clk 0:01:26.8]} 40... Qd7 {[%clk 0:00:09.4]} 41. Qc3+
{[%clk 0:01:26]} 41... Kg8 {[%clk 0:00:06.9]} 42. a4 {[%clk 0:01:24.2]} 42...
Qd6 {[%clk 0:00:03.8]} 43. Qc4 {[%clk 0:01:19.6]} 43... Qf6 {[%clk 0:00:04.6]}
44. Kf1 {[%clk 0:01:15.5]} 44... Kg7 {[%clk 0:00:05.5]} 45. Qd5 {[%clk
0:01:15.1]} 45... h5 {[%clk 0:00:06.8]} 46. Ke2 {[%clk 0:01:15.4]} 46... Nd6
{[%clk 0:00:07.7]} 47. Kf3 {[%clk 0:01:14.4]} 47... Qd8 {[%clk 0:00:08.6]} 48.
Qe5+ {[%clk 0:01:14.9]} 48... Kg8 {[%clk 0:00:09]} 49. Bd5 {[%clk 0:01:09.7]}
49... Qd7 {[%clk 0:00:08.7]} 50. Ke2 {[%clk 0:01:03.4]} 50... Nf5 {[%clk
0:00:05.7]} 51. Bb3 {[%clk 0:00:59.9]} 51... Nd6 {[%clk 0:00:06.4]} 52. Qf6
{[%clk 0:00:59.2]} 52... c4 {[%clk 0:00:06.4]} 53. Bc2 {[%clk 0:00:57.4]} 53...
Qg4+ {[%clk 0:00:07.5]} 54. Kd2 {[%clk 0:00:55.7]} 54... Qd7 {[%clk 0:00:07.5]}
55. Kc3 {[%clk 0:00:55.8]} 55... Qc6 {[%clk 0:00:07.8]} 56. Qe5 {[%clk 0:00:52]}
56... Kf8 {[%clk 0:00:07.9]} 57. Kb4 {[%clk 0:00:45]} 57... Kg8 {[%clk
0:00:06.6]} 58. e4 {[%clk 0:00:40.3]} 58... Kf8 {[%clk 0:00:06.2]} 59. f5 {[%clk
0:00:41.6]} 59... gxf5 {[%clk 0:00:06]} 60. exf5 {[%clk 0:00:42.8]} 60... Nb7
{[%clk 0:00:05.8]} 61. Be4 {[%clk 0:00:39.8]} 61... Qd6+ {[%clk 0:00:06.2]} 62.
Qxd6+ {[%clk 0:00:38.7]} 62... Nxd6 {[%clk 0:00:08.1]} 63. Bf3 {[%clk
0:00:34.5]} 63... h4 {[%clk 0:00:08]} 64. f6 {[%clk 0:00:35.4]} 64... Ke8 {[%clk
0:00:08.2]} 65. Bd5 {[%clk 0:00:36.3]} 65... h3 {[%clk 0:00:04.5]} 66. Bxc4
{[%clk 0:00:34.5]} 66... Ne4 {[%clk 0:00:05.7]} 67. Bf1 {[%clk 0:00:34.2]} 67...
Nxf2 {[%clk 0:00:05.3]} 68. Kb5 {[%clk 0:00:34.9]} 68... Kd7 {[%clk 0:00:05.4]}
69. Kxb6 {[%clk 0:00:35.6]} 69... Kc8 {[%clk 0:00:05.5]} 70. a5 {[%clk
0:00:36.9]} 70... Ne4 {[%clk 0:00:03]} 71. Bxh3+ {[%clk 0:00:36.6]} 71... Kb8
{[%clk 0:00:03.9]} 72. Be6 {[%clk 0:00:35.7]} 72... Ng5 {[%clk 0:00:04.5]} 73.
Bd5 {[%clk 0:00:36.2]} 73... Nh7 {[%clk 0:00:05.8]} 74. a6 {[%clk 0:00:37.1]}
74... Nxf6 {[%clk 0:00:07.7]} 75. a7+ {[%clk 0:00:38.2]} 1-0

[Event "*** Titled Tuesday Blitz"]
[Site "Chess.com"]
[Date "2018.06.05"]
[Round "10"]
[White "GadimbayliA"]
[Black "Micki-taryan"]
[Result "1/2-1/2"]
[WhiteElo "2583"]
[BlackElo "2835"]
[TimeControl "180+2"]
[EndTime "15:27:28 PDT"]
[Termination "Game drawn by agreement"]

1. e4 {[%clk 0:03:01.9]} 1... e5 {[%clk 0:02:58.6]} 2. Nf3 {[%clk 0:02:58.2]}
2... Nc6 {[%clk 0:03:00.5]} 3. Bb5 {[%clk 0:02:57.6]} 3... Nf6 {[%clk
0:02:55.7]} 4. O-O {[%clk 0:02:56.3]} 4... Nxe4 {[%clk 0:02:54.6]} 5. Re1 {[%clk
0:02:56.8]} 5... Nd6 {[%clk 0:02:53]} 6. Nxe5 {[%clk 0:02:56.5]} 6... Be7 {[%clk
0:02:53.4]} 7. Bf1 {[%clk 0:02:56]} 7... Nf5 {[%clk 0:02:51]} 8. c3 {[%clk
0:02:40.5]} 8... O-O {[%clk 0:02:47.7]} 9. d4 {[%clk 0:02:38.9]} 9... Nxe5
{[%clk 0:01:56.2]} 10. Rxe5 {[%clk 0:02:40.8]} 10... d6 {[%clk 0:01:54.9]} 11.
Re1 {[%clk 0:02:35]} 11... Bg5 {[%clk 0:01:54.7]} 12. Bxg5 {[%clk 0:02:26.8]}
12... Qxg5 {[%clk 0:01:56.6]} 13. Nd2 {[%clk 0:02:28.5]} 13... Bd7 {[%clk
0:01:56.9]} 14. Nf3 {[%clk 0:02:22.2]} 14... Qf6 {[%clk 0:01:57.6]} 15. Bd3
{[%clk 0:02:22.3]} 15... g6 {[%clk 0:01:54.2]} 16. Nd2 {[%clk 0:02:11.1]} 16...
Kg7 {[%clk 0:01:52.2]} 17. Qf3 {[%clk 0:02:04.7]} 17... Rab8 {[%clk 0:01:49.6]}
18. Re2 {[%clk 0:02:01.5]} 18... Rfe8 {[%clk 0:01:36.9]} 19. Rae1 {[%clk
0:01:59.2]} 19... Rxe2 {[%clk 0:01:38.3]} 20. Rxe2 {[%clk 0:02:01]} 20... Nh4
{[%clk 0:01:31.2]} 21. Qxf6+ {[%clk 0:01:58.1]} 21... Kxf6 {[%clk 0:01:33.1]}
22. f3 {[%clk 0:01:54.9]} 22... Nf5 {[%clk 0:01:31.5]} 23. Kf2 {[%clk
0:01:51.7]} 23... h5 {[%clk 0:01:32]} 24. Ne4+ {[%clk 0:01:48.1]} 24... Kg7
{[%clk 0:01:32.6]} 25. Nd2 {[%clk 0:01:44.7]} 25... Kf8 {[%clk 0:01:28.8]} 26.
Ne4 {[%clk 0:01:43.8]} 26... Kg7 {[%clk 0:01:28.7]} 27. Nd2 {[%clk 0:01:44.8]}
27... Be6 {[%clk 0:01:27.1]} 28. a3 {[%clk 0:01:42]} 28... Nh6 {[%clk
0:01:26.8]} 29. Re1 {[%clk 0:01:40.8]} 29... Ng8 {[%clk 0:01:27.1]} 30. Re2
{[%clk 0:01:39.5]} 30... Bd7 {[%clk 0:01:26.7]} 31. Re1 {[%clk 0:01:36]} 31...
a5 {[%clk 0:01:27.9]} 32. Nc4 {[%clk 0:01:33.7]} 32... b6 {[%clk 0:01:27.8]} 33.
Nd2 {[%clk 0:01:35]} 33... b5 {[%clk 0:01:28.4]} 34. Nb3 {[%clk 0:01:32]} 34...
Ra8 {[%clk 0:01:25]} 35. Nd2 {[%clk 0:01:30.6]} 35... Kf8 {[%clk 0:01:23.9]} 36.
Ne4 {[%clk 0:01:29.8]} 36... Rb8 {[%clk 0:01:23.4]} 37. Re2 {[%clk 0:01:26.8]}
37... b4 {[%clk 0:01:23.5]} 38. axb4 {[%clk 0:01:24.2]} 38... axb4 {[%clk
0:01:25.4]} 39. Kg3 {[%clk 0:01:22.8]} 39... Bf5 {[%clk 0:01:23.3]} 40. c4
{[%clk 0:01:18.6]} 40... Ne7 {[%clk 0:01:23.1]} 41. d5 {[%clk 0:01:16.9]} 41...
Bxe4 {[%clk 0:01:22.8]} 42. Bxe4 {[%clk 0:01:14.7]} 42... Ng8 {[%clk 0:01:21.2]}
43. Kf4 {[%clk 0:01:09]} 43... Nf6 {[%clk 0:01:19.9]} 44. g3 {[%clk 0:01:03.3]}
44... Nd7 {[%clk 0:01:17.6]} 45. h4 {[%clk 0:01:03.3]} 45... Nc5 {[%clk
0:01:18.8]} 46. g4 {[%clk 0:01:02.5]} 46... hxg4 {[%clk 0:01:17.9]} 47. fxg4
{[%clk 0:01:04]} 47... b3 {[%clk 0:01:19.2]} 48. Ke3 {[%clk 0:01:02.1]} 48...
Kg7 {[%clk 0:01:15.2]} 49. Kd4 {[%clk 0:00:58.6]} 49... Rh8 {[%clk 0:01:15.6]}
50. Rh2 {[%clk 0:00:58.9]} 50... Re8 {[%clk 0:01:17.1]} 51. Re2 {[%clk
0:00:52.5]} 51... Rh8 {[%clk 0:01:17.8]} 52. Rh2 {[%clk 0:00:53.1]} 52... Ra8
{[%clk 0:01:19.7]} 53. Rh1 {[%clk 0:00:50.1]} 53... Ra2 {[%clk 0:01:19.5]} 54.
Rb1 {[%clk 0:00:48.3]} 54... Ra4 {[%clk 0:01:20.4]} 55. Bf3 {[%clk 0:00:43.4]}
55... Ra8 {[%clk 0:01:21.5]} 56. Re1 {[%clk 0:00:40.8]} 56... Ra2 {[%clk
0:01:19.8]} 57. Rb1 {[%clk 0:00:38]} 57... Ra8 {[%clk 0:01:17.2]} 58. Re1 {[%clk
0:00:38.8]} 58... Rh8 {[%clk 0:01:18.8]} 59. h5 {[%clk 0:00:36.8]} 59... Kf6
{[%clk 0:01:20.2]} 60. Bd1 {[%clk 0:00:34.7]} 60... Ra8 {[%clk 0:01:06.3]} 61.
Re3 {[%clk 0:00:33.2]} 61... Ra2 {[%clk 0:01:00.9]} 62. Kc3 {[%clk 0:00:29.2]}
62... Ra1 {[%clk 0:00:50.7]} 63. Kd2 {[%clk 0:00:29.9]} 63... Rb1 {[%clk
0:00:49.6]} 64. Bxb3 {[%clk 0:00:27.3]} 64... Rxb2+ {[%clk 0:00:50.9]} 65. Bc2
{[%clk 0:00:29.2]} 65... Ra2 {[%clk 0:00:52.2]} 66. h6 {[%clk 0:00:27.6]} 66...
Kg5 {[%clk 0:00:46.4]} 67. h7 {[%clk 0:00:26.2]} 67... Ra8 {[%clk 0:00:47.9]}
68. Re7 {[%clk 0:00:25.6]} 68... Kf6 {[%clk 0:00:49.2]} 69. Rxc7 {[%clk
0:00:25.2]} 69... Rh8 {[%clk 0:00:51.1]} 70. g5+ {[%clk 0:00:23.3]} 70... Kg7
{[%clk 0:00:49.3]} 71. Rc6 {[%clk 0:00:20.7]} 71... Rd8 {[%clk 0:00:48.9]} 72.
Kc3 {[%clk 0:00:21.9]} 72... Kxh7 {[%clk 0:00:48.9]} 73. Kd4 {[%clk 0:00:22.8]}
73... Kg7 {[%clk 0:00:36.3]} 74. Rxd6 {[%clk 0:00:24]} 74... Ne6+ {[%clk
0:00:32.8]} 75. Ke5 {[%clk 0:00:21.1]} 1/2-1/2

[Event "*** Titled Tuesday Blitz"]
[Site "Chess.com"]
[Date "2018.06.05"]
[Round "10"]
[White "MPGM"]
[Black "gmjlh"]
[Result "1-0"]
[WhiteElo "2415"]
[BlackElo "2602"]
[TimeControl "180+2"]
[EndTime "15:27:29 PDT"]
[Termination "MPGM won by checkmate"]

1. Nf3 {[%clk 0:03:00.4]} 1... Nf6 {[%clk 0:03:00.2]} 2. c4 {[%clk 0:02:59.2]}
2... g6 {[%clk 0:02:58.2]} 3. d4 {[%clk 0:02:59.1]} 3... Bg7 {[%clk 0:02:58.8]}
4. e3 {[%clk 0:02:58.7]} 4... O-O {[%clk 0:02:59]} 5. Be2 {[%clk 0:02:56.8]}
5... d6 {[%clk 0:02:59.5]} 6. Nc3 {[%clk 0:02:55.8]} 6... Nbd7 {[%clk
0:03:00.4]} 7. O-O {[%clk 0:02:56.7]} 7... e5 {[%clk 0:03:01.4]} 8. Qc2 {[%clk
0:02:56]} 8... c6 {[%clk 0:02:58.5]} 9. Rd1 {[%clk 0:02:49.6]} 9... Qe7 {[%clk
0:02:58.8]} 10. b4 {[%clk 0:02:44.2]} 10... Re8 {[%clk 0:02:54.4]} 11. Bf1
{[%clk 0:02:42.1]} 11... exd4 {[%clk 0:02:49.3]} 12. exd4 {[%clk 0:02:37.3]}
12... Nb6 {[%clk 0:02:44.3]} 13. Re1 {[%clk 0:02:34.2]} 13... Qf8 {[%clk
0:02:28.6]} 14. Bf4 {[%clk 0:02:34.4]} 14... Bf5 {[%clk 0:02:20.5]} 15. Qd2
{[%clk 0:02:31.9]} 15... Ne4 {[%clk 0:02:14.2]} 16. Nxe4 {[%clk 0:02:32.2]}
16... Rxe4 {[%clk 0:02:09.5]} 17. Rxe4 {[%clk 0:02:22.1]} 17... Bxe4 {[%clk
0:02:11.4]} 18. Re1 {[%clk 0:02:09.7]} 18... Bxf3 {[%clk 0:02:00.5]} 19. gxf3
{[%clk 0:02:11.6]} 19... d5 {[%clk 0:01:54]} 20. c5 {[%clk 0:02:09.7]} 20... Nc4
{[%clk 0:01:47.8]} 21. Bxc4 {[%clk 0:02:08.7]} 21... dxc4 {[%clk 0:01:49.7]} 22.
Bd6 {[%clk 0:02:09.5]} 22... Qd8 {[%clk 0:01:50.1]} 23. Qf4 {[%clk 0:01:59.6]}
23... Qf6 {[%clk 0:01:37.7]} 24. Qxf6 {[%clk 0:01:33.9]} 24... Bxf6 {[%clk
0:01:37.6]} 25. Rc1 {[%clk 0:01:35]} 25... Bxd4 {[%clk 0:01:22.1]} 26. Rxc4
{[%clk 0:01:35.7]} 26... Bf6 {[%clk 0:01:21.8]} 27. a4 {[%clk 0:01:23.9]} 27...
Re8 {[%clk 0:01:17.7]} 28. b5 {[%clk 0:01:24.4]} 28... Be7 {[%clk 0:01:02.4]}
29. Bxe7 {[%clk 0:00:53.4]} 29... Rxe7 {[%clk 0:01:03]} 30. bxc6 {[%clk
0:00:52.4]} 30... bxc6 {[%clk 0:01:04.9]} 31. Re4 {[%clk 0:00:32.3]} 31... Kf8
{[%clk 0:00:53.3]} 32. Kg2 {[%clk 0:00:28.4]} 32... Rd7 {[%clk 0:00:52.7]} 33.
Rc4 {[%clk 0:00:08.9]} 33... Ke7 {[%clk 0:00:53.2]} 34. Re4+ {[%clk 0:00:04.1]}
34... Kf6 {[%clk 0:00:53.8]} 35. Kg3 {[%clk 0:00:05.6]} 35... Rd5 {[%clk
0:00:52.3]} 36. Rf4+ {[%clk 0:00:06]} 36... Ke6 {[%clk 0:00:42.2]} 37. Rc4
{[%clk 0:00:06.5]} 37... Rg5+ {[%clk 0:00:41]} 38. Kf4 {[%clk 0:00:07.3]} 38...
Rh5 {[%clk 0:00:42.1]} 39. Ke4 {[%clk 0:00:06.3]} 39... Rxh2 {[%clk 0:00:37.4]}
40. Rd4 {[%clk 0:00:07.6]} 40... Rh4+ {[%clk 0:00:38]} 41. f4 {[%clk 0:00:08.3]}
41... Ke7 {[%clk 0:00:21.1]} 42. Rd6 {[%clk 0:00:08.5]} 42... g5 {[%clk
0:00:21.5]} 43. Rxc6 {[%clk 0:00:08.4]} 43... Rxf4+ {[%clk 0:00:22.5]} 44. Ke5
{[%clk 0:00:09.8]} 44... Rxa4 {[%clk 0:00:21.6]} 45. Rc7+ {[%clk 0:00:10.8]}
45... Kf8 {[%clk 0:00:19.4]} 46. c6 {[%clk 0:00:11.7]} 46... h5 {[%clk
0:00:17.7]} 47. Kd5 {[%clk 0:00:11.6]} 47... Ra2 {[%clk 0:00:14.2]} 48. Rb7
{[%clk 0:00:09.2]} 48... Rd2+ {[%clk 0:00:06.3]} 49. Ke5 {[%clk 0:00:09.7]}
49... Rc2 {[%clk 0:00:07]} 50. Kd6 {[%clk 0:00:10.5]} 50... h4 {[%clk
0:00:06.2]} 51. c7 {[%clk 0:00:09.3]} 51... Kg7 {[%clk 0:00:05.3]} 52. Rb5
{[%clk 0:00:05.8]} 52... Rxc7 {[%clk 0:00:02.3]} 53. Kxc7 {[%clk 0:00:07.1]}
53... Kg6 {[%clk 0:00:03.6]} 54. Kd6 {[%clk 0:00:08.4]} 54... h3 {[%clk
0:00:04.9]} 55. Ke5 {[%clk 0:00:09]} 55... f6+ {[%clk 0:00:04.6]} 56. Ke4 {[%clk
0:00:10]} 56... Kh5 {[%clk 0:00:03.9]} 57. Kf3 {[%clk 0:00:11.4]} 57... Kg6
{[%clk 0:00:03]} 58. Kg3 {[%clk 0:00:12.5]} 58... a6 {[%clk 0:00:03.3]} 59. Ra5
{[%clk 0:00:13.4]} 59... f5 {[%clk 0:00:04.4]} 60. Kxh3 {[%clk 0:00:14.7]} 60...
Kh5 {[%clk 0:00:06.3]} 61. Kg3 {[%clk 0:00:15.9]} 61... f4+ {[%clk 0:00:08.2]}
62. Kf3 {[%clk 0:00:17]} 62... Kh4 {[%clk 0:00:09.8]} 63. Rxa6 {[%clk
0:00:17.3]} 63... Kh5 {[%clk 0:00:11.7]} 64. Rb6 {[%clk 0:00:17.2]} 64... g4+
{[%clk 0:00:13.3]} 65. Kxf4 {[%clk 0:00:18.5]} 65... g3 {[%clk 0:00:15.2]} 66.
f3 {[%clk 0:00:16.8]} 66... g2 {[%clk 0:00:15.7]} 67. Rb1 {[%clk 0:00:18.2]}
67... Kh4 {[%clk 0:00:17.1]} 68. Rg1 {[%clk 0:00:19.8]} 68... Kh3 {[%clk
0:00:19]} 69. Rxg2 {[%clk 0:00:20.3]} 69... Kxg2 {[%clk 0:00:20.8]} 70. Kg4
{[%clk 0:00:21.9]} 70... Kf2 {[%clk 0:00:22.7]} 71. f4 {[%clk 0:00:23.8]} 71...
Ke3 {[%clk 0:00:24.6]} 72. Kg5 {[%clk 0:00:25.3]} 72... Ke4 {[%clk 0:00:26.4]}
73. f5 {[%clk 0:00:27]} 73... Kd5 {[%clk 0:00:28.3]} 74. Kg6 {[%clk 0:00:28.9]}
74... Kd6 {[%clk 0:00:30.2]} 75. f6 {[%clk 0:00:30.1]} 75... Kd7 {[%clk
0:00:32.1]} 76. Kg7 {[%clk 0:00:32]} 76... Ke8 {[%clk 0:00:33.4]} 77. f7+ {[%clk
0:00:33.9]} 77... Kd7 {[%clk 0:00:35.3]} 78. f8=Q {[%clk 0:00:35.2]} 78... Kc6
{[%clk 0:00:37.2]} 79. Qf5 {[%clk 0:00:36.1]} 79... Kd6 {[%clk 0:00:38.4]} 80.
Kf6 {[%clk 0:00:37.6]} 80... Kc6 {[%clk 0:00:40.3]} 81. Ke6 {[%clk 0:00:39]}
81... Kc7 {[%clk 0:00:41.6]} 82. Qc5+ {[%clk 0:00:40.1]} 82... Kb7 {[%clk
0:00:43]} 83. Kd6 {[%clk 0:00:41.1]} 83... Ka6 {[%clk 0:00:44.9]} 84. Qb4 {[%clk
0:00:42.3]} 84... Ka7 {[%clk 0:00:46.1]} 85. Kc7 {[%clk 0:00:43.8]} 85... Ka6
{[%clk 0:00:48]} 86. Qb6# {[%clk 0:00:44.7]} 1-0